bitfinex/quotes_SOLUSD_20250929
["timestamp","ask_amount","ask_price","bid_price","bid_amount"]
[1759122693465,0.72,209.84,209.81,0.1]
[1759122693764,2.37795343,209.85,209.81,0.82]
[1759122693967,2.37795343,209.85,209.81,4.8661908]
[1759122694288,0.72,209.84,209.81,4.8661908]
[1759122694468,0.72,209.84,209.81,0.1]
[1759122694666,2.37795343,209.85,209.81,0.1]
[1759122694881,0.72,209.83,209.81,0.1]
[1759122695771,0.72,209.83,209.81,4.86612949]
[1759122697762,3.09795343,209.85,209.81,4.86612949]
[1759122697964,0.72,209.84,209.81,4.86612949]
[1759122699085,0.72,209.84,209.81,0.1]
[1759122700173,0.72,209.84,209.81,4.86619284]
[1759122700785,1.52576137,209.85,209.81,5.58619284]
[1759122701088,2.24576137,209.85,209.81,5.58619284]
[1759122701467,0.72,209.84,209.81,4.86619284]
[1759122702065,1.52576137,209.85,209.81,4.86619284]
[1759122702261,2.24576137,209.85,209.81,4.86619284]
[1759122702681,0.72,209.84,209.81,0.1]
[1759122702894,0.72,209.83,209.81,0.1]
[1759122705493,0.72,209.82,209.81,0.1]
[1759122705687,2.24576137,209.82,209.81,0.1]
[1759122708197,1.52576137,209.83,209.81,0.1]
[1759122708500,1.52576137,209.84,209.81,0.1]
[1759122709004,2.24576137,209.84,209.81,0.1]
[1759122709993,1.52576137,209.82,209.81,0.1]
[1759122710502,2.24576137,209.82,209.81,0.1]
[1759122711494,1.52576137,209.82,209.81,0.1]
[1759122713295,2.24576137,209.82,209.81,0.1]
[1759122713681,2.24576137,209.82,209.78,0.1]
[1759122713682,18.926726,209.82,209.78,0.1]
[1759122713881,27.52576137,209.79,209.78,0.1]
[1759122714293,28.24576137,209.79,209.78,0.1]
[1759122714894,33.0124328,209.79,209.78,0.1]
[1759122715294,0.72,209.81,209.78,0.1]
[1759122715493,1.52576137,209.8,209.78,0.1]
[1759122715690,0.72,209.79,209.78,0.1]
[1759122718590,27.52576137,209.8,209.78,0.1]
[1759122718989,28.24576137,209.8,209.78,0.1]
[1759122719197,27.52576137,209.8,209.78,4.86687466]
[1759122719377,28.24576137,209.8,209.78,0.1]
[1759122720379,0.72,209.79,209.78,0.1]
[1759122722607,5.48667143,209.79,209.78,0.1]
[1759122724885,0.72,209.79,209.78,0.1]
[1759122726581,5.48667143,209.79,209.78,0.1]
[1759122731809,0.72,209.79,209.78,0.1]
[1759122732396,26.72,209.79,209.78,0.1]
[1759122733112,31.48667143,209.79,209.78,0.1]
[1759122733287,26.72,209.79,209.78,0.1]
[1759122734217,31.48667143,209.79,209.78,0.1]
[1759122737105,85.25863036,209.79,209.78,0.1]
[1759122737615,1.52576137,209.69,209.66,5.46943698]
[1759122737818,1.52576137,209.69,209.67,0.7]
[1759122739100,1.52576137,209.69,209.66,4.76943698]
[1759122739317,1.52576137,209.69,209.67,0.7]
[1759122739517,1.52576137,209.69,209.68,0.7]
[1759122740428,5.47646208,209.8,209.69,16.69130621]
[1759122740725,1.52576137,209.77,209.7,0.7]
[1759122740896,27.52576137,209.77,209.7,0.7]
[1759122741100,1.52576137,209.74,209.69,16.69130621]
[1759122741296,0.71,209.73,209.69,5.47894463]
[1759122741534,1.52576137,209.74,209.69,5.47894463]
[1759122741723,2.23576137,209.74,209.69,5.47894463]
[1759122742403,1.52576137,209.71,209.69,4.76894463]
[1759122743017,1.52576137,209.71,209.69,5.47894463]
[1759122743724,1.52576137,209.75,209.7,0.71]
[1759122744228,2.23576137,209.75,209.7,0.71]
[1759122744727,2.23576137,209.75,209.71,4.76848981]
[1759122746808,2.23576137,209.75,209.71,17.39971435]
[1759122747119,2.23576137,209.75,209.71,16.68971435]
[1759122747325,1.52576137,209.74,209.71,16.68971435]
[1759122747637,0.71,209.73,209.65,0.1]
[1759122747942,1.52576137,209.68,209.65,0.1]
[1759122748313,1.52576137,209.68,209.65,0.81]
[1759122748513,1.52576137,209.68,209.65,5.57982315]
[1759122749039,1.52576137,209.68,209.65,4.86982315]
[1759122750214,1.52576137,209.68,209.66,0.71]
[1759122750829,1.52576137,209.68,209.67,4.76939953]
[1759122752445,1.52576137,209.68,209.67,5.47939953]
[1759122752737,1.52576137,209.71,209.67,17.40289836]
[1759122752919,26.0,209.72,209.68,0.71]
[1759122753236,0.71,209.72,209.68,0.71]
[1759122753435,0.71,209.72,209.67,16.69289836]
[1759122753641,0.71,209.72,209.67,17.40289836]
[1759122753642,26.71,209.72,209.67,17.40289836]
[1759122754359,26.71,209.72,209.67,11.92349883]
[1759122754653,26.0,209.72,209.68,0.71]
[1759122754837,26.0,209.72,209.69,0.71]
[1759122755735,0.71,209.74,209.69,0.71]
[1759122755937,26.71,209.74,209.69,0.71]
[1759122756133,0.71,209.74,209.7,0.71]
[1759122756539,0.71,209.74,209.71,4.76848981]
[1759122757971,62.98,209.76,209.67,0.71]
[1759122757972,0.71,209.73,209.67,0.71]
[1759122758166,0.71,209.73,209.66,5.47962701]
[1759122758465,0.71,209.72,209.66,5.47962701]
[1759122759654,0.71,209.72,209.66,4.76962701]
[1759122759834,0.71,209.72,209.68,4.76917207]
[1759122760034,0.71,209.71,209.68,4.76917207]
[1759122760642,0.71,209.73,209.68,4.76917207]
[1759122760863,0.71,209.72,209.66,17.40369454]
[1759122761158,0.71,209.72,209.66,16.69369454]
[1759122761361,0.71,209.72,209.67,0.71]
[1759122761869,0.71,209.71,209.66,4.76962701]
[1759122762038,0.71,209.7,209.66,4.76962701]
[1759122762766,0.71,209.69,209.66,4.76962701]
[1759122763353,4.7682492,209.73,209.66,4.76962701]
[1759122763651,0.71,209.72,209.66,4.76962701]
[1759122763860,26.71,209.71,209.66,4.76962701]
[1759122764050,26.0,209.71,209.66,4.76962701]
[1759122764245,0.71,209.7,209.66,4.76962701]
[1759122766864,26.0,209.71,209.66,4.76962701]
[1759122767053,26.71,209.71,209.66,5.47962701]
[1759122767645,26.0,209.71,209.66,5.47962701]
[1759122767838,26.71,209.71,209.66,5.47962701]
[1759122769058,26.0,209.72,209.67,0.71]
[1759122769273,26.71,209.72,209.67,0.71]
[1759122769456,0.71,209.72,209.68,0.71]
[1759122769659,26.0,209.71,209.66,17.40369454]
[1759122769858,26.71,209.71,209.66,16.69369454]
[1759122770061,26.71,209.71,209.68,4.76917207]
[1759122770771,0.71,209.71,209.68,4.76917207]
[1759122771576,26.71,209.71,209.68,4.76917207]
[1759122771775,26.0,209.71,209.69,0.65]
[1759122771976,26.0,209.71,209.68,16.69210224]
[1759122772156,26.0,209.72,209.68,17.34210224]
[1759122772475,26.69,209.72,209.68,16.69210224]
[1759122772651,26.0,209.72,209.68,16.69210224]
[1759122772881,26.69,209.72,209.68,16.69210224]
[1759122773052,26.0,209.72,209.68,16.69210224]
[1759122773257,26.69,209.72,209.68,16.69210224]
[1759122773972,26.69,209.72,209.68,17.34210224]
[1759122774275,26.69,209.72,209.68,16.69210224]
[1759122774778,26.69,209.72,209.68,17.34210224]
[1759122774964,14.34205809,209.79,209.69,0.65]
[1759122775168,0.69,209.76,209.69,0.65]
[1759122775474,26.0,209.75,209.69,0.65]
[1759122775859,26.69,209.76,209.69,0.65]
[1759122776373,26.69,209.76,209.7,16.69051024]
[1759122776675,0.69,209.75,209.7,16.69051024]
[1759122776882,0.69,209.75,209.7,17.34051024]
[1759122779074,26.69,209.75,209.7,17.34051024]
[1759122780776,26.69,209.75,209.71,0.65]
[1759122780961,26.0,209.75,209.72,0.65]
[1759122781560,3.19299641,209.76,209.72,0.65]
[1759122781880,3.88299641,209.76,209.73,4.76803509]
[1759122782084,0.69,209.76,209.73,4.76803509]
[1759122782383,3.88299641,209.76,209.73,4.76803509]
[1759122782561,3.19299641,209.77,209.73,4.76803509]
[1759122782756,0.69,209.77,209.73,4.76803509]
[1759122782957,0.69,209.77,209.73,16.68812282]
[1759122784768,29.19299641,209.78,209.73,16.68812282]
[1759122784989,0.69,209.77,209.73,16.68812282]
[1759122785358,26.0,209.78,209.73,16.68812282]
[1759122785573,0.69,209.77,209.73,16.68812282]
[1759122786768,0.69,209.77,209.73,0.65]
[1759122787182,0.69,209.76,209.71,0.65]
[1759122787385,0.69,209.76,209.72,0.65]
[1759122787876,0.69,209.77,209.73,4.76803509]
[1759122788279,26.0,209.78,209.73,4.76803509]
[1759122788476,0.69,209.77,209.73,4.76803509]
[1759122788788,0.69,209.77,209.73,5.41803509]
[1759122788960,0.69,209.77,209.73,17.33812282]
[1759122790079,26.69,209.78,209.73,17.33812282]
[1759122790265,0.69,209.77,209.73,17.33812282]
[1759122794778,26.0,209.78,209.73,11.92008773]
[1759122794981,36.82,209.81,209.74,0.69]
[1759122796168,0.7,209.86,209.75,13.59559401]
[1759122796476,0.7,209.86,209.77,13.59559401]
[1759122796681,0.7,209.86,209.79,13.59559401]
[1759122796882,0.7,209.86,209.8,16.68255481]
[1759122797084,0.7,209.86,209.8,17.37255481]
[1759122797792,26.0,209.87,209.81,0.69]
[1759122798294,26.0,209.87,209.8,16.68255481]
[1759122798484,0.7,209.86,209.8,16.68255481]
[1759122798678,0.7,209.86,209.8,17.37255481]
[1759122799288,0.7,209.86,209.81,0.69]
[1759122799798,0.7,209.85,209.8,16.68255481]
[1759122800088,26.0,209.87,209.81,0.69]
[1759122800295,0.7,209.86,209.81,0.69]
[1759122800471,26.0,209.87,209.81,0.69]
[1759122800674,0.7,209.86,209.81,0.69]
[1759122800888,26.7,209.86,209.81,0.69]
[1759122801079,26.7,209.86,209.82,4.76598989]
[1759122801281,0.66,209.85,209.82,4.76598989]
[1759122801484,0.66,209.84,209.82,4.76598989]
[1759122802089,26.0,209.86,209.82,4.76598989]
[1759122802295,0.66,209.85,209.82,4.76598989]
[1759122803184,26.0,209.86,209.81,4.76621705]
[1759122803393,0.66,209.85,209.81,4.76621705]
[1759122803891,0.66,209.84,209.81,4.76621705]
[1759122806901,4.76463454,209.88,209.81,4.76621705]
[1759122807101,0.66,209.87,209.81,4.76621705]
[1759122807277,0.66,209.86,209.81,4.76621705]
[1759122807588,0.66,209.85,209.81,4.76621705]
[1759122807793,0.66,209.86,209.81,17.36175968]
[1759122807996,0.66,209.85,209.81,17.36175968]
[1759122808307,0.66,209.87,209.82,0.68]
[1759122808606,0.66,209.86,209.82,0.68]
[1759122810083,36.8,209.89,209.83,16.68016966]
[1759122810311,0.66,209.88,209.83,16.68016966]
[1759122810607,0.66,209.87,209.83,16.68016966]
[1759122810997,0.66,209.86,209.83,16.68016966]
[1759122812908,26.66,209.91,209.84,0.68]
[1759122813405,0.66,209.91,209.84,0.68]
[1759122813986,0.66,209.91,209.85,16.67857993]
[1759122814296,0.66,209.91,209.85,17.35857993]
[1759122815595,0.66,209.91,209.86,0.68]
[1759122815795,0.66,209.91,209.85,16.67857993]
[1759122815985,0.66,209.91,209.88,4.7646274]
[1759122816907,36.74,209.92,209.88,4.7646274]
[1759122816908,0.66,209.93,209.89,0.68]
[1759122817389,0.66,209.93,209.88,16.67619591]
[1759122817390,0.66,209.93,209.88,17.35619591]
[1759122817711,0.66,209.93,209.86,26.0]
[1759122817712,0.66,209.92,209.86,4.76508148]
[1759122817939,0.66,209.91,209.86,4.76508148]
[1759122818099,0.66,209.9,209.85,11.91291183]
[1759122818299,0.66,209.89,209.85,11.91291183]
[1759122819287,0.66,209.89,209.85,16.67822038]
[1759122820489,0.66,209.89,209.85,12.59291183]
[1759122820691,0.66,209.9,209.85,11.91291183]
[1759122820896,0.66,209.89,209.85,12.59291183]
[1759122821224,0.66,209.91,209.86,0.68]
[1759122821793,0.66,209.91,209.85,11.91291183]
[1759122822018,0.66,209.91,209.86,0.68]
[1759122822216,0.66,209.91,209.87,4.76485443]
[1759122823013,41.50313035,209.95,209.87,4.76485443]
[1759122823314,1.52455371,209.93,209.87,4.76485443]
[1759122823705,0.66,209.92,209.87,4.76485443]
[1759122824107,0.66,209.91,209.87,4.76485443]
[1759122824308,0.66,209.9,209.87,4.76485443]
[1759122825213,0.66,209.93,209.88,0.68]
[1759122825508,0.66,209.93,209.9,4.76417341]
[1759122826916,1.52455371,209.95,209.89,4.76436607]
[1759122827092,1.52455371,209.91,209.83,5.44576276]
[1759122827299,0.66,209.9,209.83,5.44576276]
[1759122827513,1.52455371,209.87,209.81,4.76621705]
[1759122827698,0.66,209.86,209.81,4.76621705]
[1759122828204,2.18455371,209.87,209.82,0.68]
[1759122828414,0.66,209.86,209.81,4.76621705]
[1759122828612,0.66,209.86,209.81,0.68]
[1759122829710,0.66,209.85,209.79,16.6830151]
[1759122829896,0.66,209.85,209.81,0.68]
[1759122830615,0.66,209.85,209.79,17.3630151]
[1759122831915,0.72,209.84,209.79,4.76667143]
[1759122832127,0.72,209.83,209.79,4.76667143]
[1759122833011,0.72,209.82,209.78,4.76689865]
[1759122834015,0.72,209.82,209.78,5.43689865]
[1759122834911,0.72,209.82,209.77,4.76712589]
[1759122835218,0.72,209.84,209.78,0.67]
[1759122836331,0.72,209.84,209.79,4.76667143]
[1759122836613,7.94956349,209.89,209.79,16.68335001]
[1759122836820,1.52455371,209.88,209.8,0.67]
[1759122836996,2.24455371,209.88,209.8,0.67]
[1759122838121,2.24455371,209.88,209.81,4.76621705]
[1759122838322,0.72,209.87,209.81,4.76621705]
[1759122838619,0.72,209.86,209.81,4.76621705]
[1759122838818,0.72,209.85,209.81,4.76621705]
[1759122839021,0.72,209.84,209.81,4.76621705]
[1759122839326,6.28929458,209.88,209.81,4.76621705]
[1759122839613,0.72,209.87,209.81,4.76621705]
[1759122839824,2.24455371,209.86,209.79,16.68335001]
[1759122839996,0.72,209.85,209.79,16.68335001]
[1759122840192,0.72,209.85,209.79,17.35335001]
[1759122840413,0.72,209.84,209.79,4.76667143]
[1759122840625,0.72,209.83,209.79,4.76667143]
[1759122840796,0.72,209.82,209.79,4.76667143]
[1759122841209,0.72,209.82,209.78,4.76687405]
[1759122842931,0.72,209.82,209.78,5.43687405]
[1759122844546,1.52455371,209.83,209.78,5.43687405]
[1759122844723,0.72,209.82,209.78,5.43687405]
[1759122845941,1.52455371,209.83,209.78,4.76687405]
[1759122846129,2.24455371,209.83,209.79,0.67]
[1759122846331,2.24455371,209.83,209.78,0.67]
[1759122846535,0.72,209.82,209.78,0.67]
[1759122847046,0.72,209.84,209.79,0.67]
[1759122847230,1.52455371,209.85,209.79,0.67]
[1759122847430,0.72,209.84,209.79,0.67]
[1759122847631,0.72,209.83,209.79,0.67]
[1759122847981,1.52455371,209.82,209.74,0.67]
[1759122848137,0.72,209.81,209.75,5.43758045]
[1759122848644,6.29055139,209.82,209.75,5.43758045]
[1759122848645,0.72,209.8,209.75,4.76758045]
[1759122848844,0.72,209.79,209.73,5.4378552]
[1759122849020,0.72,209.78,209.73,4.7678552]
[1759122849222,0.72,209.77,209.73,4.7678552]
[1759122849445,0.72,209.76,209.71,41.50833202]
[1759122849651,0.72,209.75,209.71,41.50833202]
[1759122849930,0.72,209.74,209.71,41.50833202]
[1759122850468,0.72,209.74,209.71,4.76833202]
[1759122852042,0.72,209.73,209.67,12.59311301]
[1759122852251,0.72,209.72,209.67,5.43918351]
[1759122852548,0.72,209.71,209.67,5.43918351]
[1759122853046,0.72,209.71,209.67,4.76918351]
[1759122853242,0.72,209.7,209.67,4.76918351]
[1759122853443,2.24455371,209.72,209.66,4.76962701]
[1759122853656,2.24455371,209.72,209.67,0.66]
[1759122854139,0.72,209.71,209.67,0.66]
[1759122855836,0.65922091,209.71,209.68,4.76917207]
[1759122856556,1.52455371,209.72,209.67,4.76937506]
[1759122856755,6.2928515,209.72,209.67,4.76937506]
[1759122856964,26.0,209.74,209.67,4.76937506]
[1759122857145,27.52455371,209.74,209.67,4.76937506]
[1759122857353,27.52455371,209.74,209.67,5.42937506]
[1759122857539,1.52455371,209.74,209.68,0.66]
[1759122857734,132.8,209.85,209.69,4.76894463]
[1759122857942,1.52455371,209.81,209.7,0.66]
[1759122858238,0.72,209.8,209.7,0.66]
[1759122859158,0.72,209.8,209.71,16.68971435]
[1759122859345,0.72,209.8,209.72,0.66]
[1759122860761,1.52455371,209.81,209.72,0.66]
[1759122860952,1.52455371,209.81,209.72,37.5]
[1759122861144,0.66,209.8,209.73,17.37812282]
[1759122861344,0.66,209.79,209.73,17.37812282]
[1759122861544,0.66,209.79,209.74,0.69]
[1759122861842,0.66,209.79,209.75,0.69]
[1759122862043,0.66,209.78,209.73,4.76803509]
[1759122862245,0.66,209.77,209.7,0.69]
[1759122862460,2.18455371,209.77,209.69,11.92195523]
[1759122862667,0.66,209.76,209.69,11.92195523]
[1759122862846,0.66,209.76,209.69,12.61195523]
[1759122863260,0.66,209.76,209.7,4.76871721]
[1759122864253,3.94545372,209.93,209.75,13.59559401]
[1759122864555,0.66,209.97,209.86,13.59559401]
[1759122864758,0.2,209.99,209.88,39.59559401]
[1759122864967,0.2,209.99,209.92,13.59559401]
[1759122865166,0.2,209.99,209.94,13.59559401]
[1759122865348,0.2,209.99,209.93,17.36222407]
[1759122867646,0.2,209.99,209.93,31.45795521]
[1759122868566,0.66,209.98,209.93,4.76349259]
[1759122868771,0.66,209.97,209.93,4.76349259]
[1759122868943,0.2,209.99,209.93,4.76349259]
[1759122869149,0.66,209.96,209.93,4.76349259]
[1759122870170,0.66,209.96,209.9,16.67434055]
[1759122870943,0.66,209.96,209.9,31.27322496]
[1759122871856,26.2,209.99,209.9,31.27322496]
[1759122872064,0.86,209.99,209.92,16.67301829]
[1759122872368,0.66,209.98,209.92,16.67301829]
[1759122874744,38.2,209.98,209.92,16.67301829]
[1759122876071,37.52,209.97,209.92,16.67301829]
[1759122876278,0.66,209.96,209.92,11.90929878]
[1759122876851,0.66,209.96,209.91,5.45394645]
[1759122877468,0.66,209.96,209.91,17.36381258]
[1759122877860,0.66,209.96,209.91,16.67381258]
[1759122878169,0.66,209.96,209.92,0.69]
[1759122878555,0.66,209.95,209.91,4.76394645]
[1759122878759,37.52,209.97,209.89,4.76434692]
[1759122878760,0.66,209.94,209.89,4.76434692]
[1759122878957,0.66,209.93,209.89,4.76434692]
[1759122879151,0.66,209.93,209.89,5.45434692]
[1759122880477,37.48,209.93,209.9,0.69]
[1759122880974,37.48,209.93,209.89,16.67534792]
[1759122881174,38.14,209.93,209.89,16.67534792]
[1759122882282,38.14,209.93,209.89,11.911001]
[1759122882974,38.14,209.93,209.88,4.7646274]
[1759122882975,0.66,209.92,209.88,4.7646274]
[1759122883162,0.66,209.91,209.88,4.7646274]
[1759122884164,0.66,209.9,209.88,4.7646274]
[1759122884351,0.66,209.9,209.86,16.67758944]
[1759122884973,0.612506,209.9,209.86,16.67758944]
[1759122886160,0.612506,209.9,209.86,0.69]
[1759122886350,2.38169005,209.92,209.87,0.69]
[1759122886550,37.4,209.91,209.88,0.69]
[1759122886771,2.38169005,209.92,209.88,0.69]
[1759122887073,37.4,209.9,209.88,0.69]
[1759122887274,3.04169005,209.92,209.88,0.69]
[1759122887463,3.04169005,209.92,209.87,4.76485443]
[1759122887773,2.38169005,209.92,209.87,4.76485443]
[1759122888073,0.66,209.94,209.88,0.69]
[1759122888250,37.4,209.93,209.88,0.69]
[1759122888452,0.66,209.92,209.88,0.69]
[1759122888650,37.4,209.93,209.88,0.69]
[1759122888875,38.06,209.93,209.88,0.69]
[1759122889087,38.06,209.93,209.89,0.69]
[1759122889386,37.4,209.93,209.9,4.76417341]
[1759122889555,0.66,209.92,209.9,4.76417341]
[1759122890580,0.66,209.92,209.88,16.67619591]
[1759122890776,38.02,209.92,209.88,17.36619591]
[1759122891868,37.36,209.92,209.88,17.36619591]
[1759122892055,38.07,209.92,209.88,17.36619591]
[1759122893158,0.71,209.94,209.89,0.69]
[1759122893357,37.36,209.91,209.89,0.69]
[1759122893781,37.34,209.91,209.89,0.69]
[1759122894077,37.34,209.91,209.88,11.91156851]
[1759122894278,37.34,209.91,209.88,12.60156851]
[1759122894783,37.32,209.9,209.88,11.91156851]
[1759122896080,0.71,209.93,209.88,11.91156851]
[1759122896279,37.32,209.9,209.88,11.91156851]
[1759122897485,37.3,209.9,209.88,11.91156851]
[1759122897982,26.0,209.96,209.89,0.69]
[1759122898183,37.3,209.95,209.89,0.69]
[1759122898782,38.01,209.95,209.89,0.69]
[1759122899186,38.01,209.95,209.9,16.67460694]
[1759122899380,0.71,209.94,209.9,16.67460694]
[1759122900387,0.71,209.93,209.9,16.67460694]
[1759122900780,0.71,209.92,209.9,4.76417341]
[1759122900976,37.99,209.91,209.86,11.91242685]
[1759122901293,0.71,209.9,209.86,16.67750833]
[1759122901785,0.71,209.89,209.86,4.76508148]
[1759122901990,0.71,209.88,209.86,4.76508148]
[1759122902177,0.71,209.9,209.86,5.45508148]
[1759122902492,37.28,209.9,209.87,0.69]
[1759122903167,37.28,209.9,209.85,14.57445715]
[1759122903382,0.71,209.89,209.86,4.7649359]
[1759122903686,37.28,209.9,209.86,4.7649359]
[1759122903887,2.38169005,209.92,209.86,4.7649359]
[1759122904087,37.28,209.91,209.86,17.3676396]
[1759122904390,0.71,209.9,209.86,17.3676396]
[1759122904776,37.28,209.91,209.86,16.6776396]
[1759122904984,0.71,209.89,209.86,16.6776396]
[1759122905166,0.71,209.88,209.86,16.6776396]
[1759122905361,0.71,209.88,209.86,4.7649359]
[1759122906388,39.66169005,209.91,209.86,4.7649359]
[1759122906570,0.71,209.9,209.86,4.7649359]
[1759122906773,0.71,209.89,209.86,4.7649359]
[1759122907074,0.71,209.88,209.86,4.7649359]
[1759122907275,38.01,209.87,209.82,11.91479053]
[1759122907498,0.71,209.86,209.82,11.91479053]
[1759122907869,0.71,209.86,209.82,26.23992893]
[1759122908070,0.71,209.86,209.82,11.91479053]
[1759122908505,0.71,209.85,209.82,11.91479053]
[1759122908667,0.71,209.84,209.81,4.76621705]
[1759122909100,0.71,209.83,209.81,4.76621705]
[1759122910693,0.71,209.83,209.79,16.68323043]
[1759122910996,0.71,209.83,209.79,31.02760823]
[1759122912077,37.28,209.84,209.8,0.69]
[1759122912488,2.38169005,209.9,209.8,0.69]
[1759122912680,37.28,209.89,209.8,0.69]
[1759122912888,0.68,209.88,209.8,0.69]
[1759122913093,37.3,209.87,209.8,0.69]
[1759122915091,0.68,209.87,209.81,16.68175968]
[1759122915523,37.28,209.86,209.81,16.68175968]
[1759122915800,37.28,209.86,209.81,17.37175968]
[1759122915988,37.94,209.85,209.81,17.37175968]
[1759122916187,0.68,209.84,209.81,16.68175968]
[1759122916798,37.26,209.85,209.81,16.68175968]
[1759122916994,0.68,209.83,209.81,16.68175968]
[1759122917177,37.26,209.85,209.81,11.91554263]
[1759122917376,0.68,209.84,209.81,11.91554263]
[1759122918200,37.26,209.85,209.81,11.91554263]
[1759122918398,37.26,209.85,209.81,12.60554263]
[1759122919502,37.26,209.85,209.81,17.37175968]
[1759122920385,0.68,209.85,209.81,16.68175968]
[1759122920588,37.24,209.84,209.81,11.91554263]
[1759122921202,0.71,209.83,209.81,11.91554263]
[1759122921586,37.24,209.84,209.81,11.91554263]
[1759122921794,37.95,209.84,209.81,11.91554263]
[1759122922396,0.71,209.83,209.81,11.91554263]
[1759122922899,0.71,209.83,209.8,4.76644423]
[1759122923279,37.22,209.85,209.81,0.68]
[1759122923484,28.38169005,209.89,209.81,0.68]
[1759122923692,37.93,209.88,209.81,0.68]
[1759122924295,37.93,209.88,209.82,16.68096463]
[1759122924597,0.71,209.87,209.82,16.68096463]
[1759122924800,3.09169005,209.89,209.83,0.68]
[1759122925106,2.38169005,209.85,209.79,26.2605902]
[1759122925291,0.71,209.84,209.8,4.76644423]
[1759122925600,37.26,209.83,209.8,4.76644423]
[1759122925797,37.26,209.83,209.75,37.43346787]
[1759122925798,3.09169005,209.82,209.77,4.76712589]
[1759122926004,0.71,209.81,209.77,4.76712589]
[1759122926180,0.71,209.8,209.77,4.76712589]
[1759122926381,0.71,209.79,209.75,16.68607034]
[1759122926576,0.71,209.81,209.75,16.68607034]
[1759122926801,0.71,209.81,209.75,17.36607034]
[1759122927384,0.71,209.81,209.75,31.4079869]
[1759122927590,2.38169005,209.82,209.76,0.68]
[1759122927888,37.26,209.81,209.76,0.68]
[1759122928200,0.71,209.85,209.77,0.68]
[1759122928506,37.28,209.84,209.78,16.68414528]
[1759122928882,0.71,209.83,209.78,16.68414528]
[1759122929087,37.99,209.83,209.78,17.36414528]
[1759122929292,37.28,209.83,209.78,16.68414528]
[1759122929605,0.71,209.82,209.78,16.68414528]
[1759122929995,37.28,209.83,209.78,16.68414528]
[1759122930183,37.99,209.83,209.78,17.36414528]
[1759122930529,37.28,209.83,209.79,0.68]
[1759122931004,37.99,209.83,209.79,0.68]
[1759122931408,37.28,209.83,209.79,0.68]
[1759122932504,3.09169005,209.85,209.8,16.68255481]
[1759122932704,37.95,209.84,209.8,16.68255481]
[1759122933207,0.71,209.83,209.8,16.68255481]
[1759122934306,37.24,209.84,209.8,11.91611058]
[1759122934493,0.71,209.83,209.8,11.91611058]
[1759122934807,0.71,209.82,209.8,11.91611058]
[1759122936002,37.24,209.84,209.76,16.68573607]
[1759122936194,0.71,209.83,209.78,0.68]
[1759122936500,0.71,209.83,209.76,16.68573607]
[1759122936702,0.71,209.83,209.78,0.68]
[1759122938102,0.71,209.83,209.79,16.68335001]
[1759122938504,0.71,209.83,209.79,17.36335001]
[1759122938900,0.71,209.83,209.79,16.68335001]
[1759122940508,37.91,209.83,209.79,16.68335001]
[1759122940715,37.89,209.83,209.79,16.68335001]
[1759122941301,37.18,209.83,209.79,16.68335001]
[1759122941500,37.89,209.83,209.79,16.68335001]
[1759122943318,0.71,209.83,209.79,16.68335001]
[1759122943516,37.16,209.82,209.79,16.68335001]
[1759122944008,37.87,209.82,209.79,16.68335001]
[1759122944220,37.85,209.82,209.79,16.68335001]